[Event "Teplice Open 2022"]
[Site "Teplice"]
[Date "2022.06.22"]
[Round "5.18"]
[White "Fataliyeva, Ulviyya"]
[Black "Seo, Jung Min"]
[Result "1/2-1/2"]
[ECO "E04"]
[WhiteElo "2348"]
[BlackElo "2483"]
[Annotator "TA"]
[PlyCount "82"]
[EventDate "2022.06.18"]
[EventType "swiss"]
[EventCountry "CZE"]
[SourceTitle "playchess.com"]
[Source "ChessBase"]
[SourceQuality "1"]
[TimeControl "40/5400+30:1800+30"]

{[%evp 10,82,0,0,-11,-14,0,-9,-6,-23,-16,-37,-42,-115,-104,-114,-106,-90,-100,-114,-75,-110,-59,-65,-75,-94,-75,-117,-113,-100,-91,-106,-116,-94,-22,-33,0,-81,-14,-10,-7,-5,0,0,0,0,0,0,0,0,0,0,120,98,109,118,130,61,118,140,108,-22,-14,-32,-29,-20,-25,-25,0,0,0,0,0,0,0]} 1. d4 {[%emt 0:07:19]} Nf6 {[%emt 0:00:04]} 2. c4 {[%emt 0:00:04]} e6 {[%emt 0:00:03]} 3. Nf3 {[%emt 0:00:04]} d5 {[%emt 0:00:03]} 4. g3 {[%emt 0:00:05]} Bb4+ {[%emt 0:00:12]} 5. Nbd2 {[%emt 0:00:06]} dxc4 {[%emt 0:00:27]} 6. Bg2 {[%emt 0:00:04]} (6. a3 $5 {[%cal Ra3b4]} Bxd2+ 7. Bxd2 $11) 6... b5 {[%emt 0:05:48] Against Qa4. E04: Open Catalan: 5 Nf3.} 7. O-O {[%emt 0:02:47][%cal Od2c4]} (7. Ne5 {is interesting.} Nd5 8. O-O O-O 9. Qc2) 7... O-O {[%emt 0:01:42]} 8. a3 {[%emt 0:03:24]} Be7 {[%emt 0:04:06]} 9. b3 {[%emt 0:09:42]} cxb3 {[%emt 0:08:46]} 10. Qxb3 {[%emt 0:00:58]} a6 {[%emt 0:01:42] [#]} 11. e4 $146 {[%emt 0:04:06]} (11. a4 $15) ({Predecessor:} 11. Bb2 Bb7 12. a4 b4 13. Rfd1 Nbd7 14. Nc4 a5 15. Rac1 Ra6 16. Nfd2 Bxg2 17. Kxg2 {½-½ (30) Nguyen,V (2454)-Sahoo,U (2329) Ahmedabad 2019}) 11... Bb7 $17 {[%emt 0:02:32]} 12. Qc2 {[%emt 0:06:12]} Nbd7 {[%emt 0:09:06]} 13. e5 {[%emt 0:05:26]} Nd5 {[%emt 0:01:37]} 14. Ne4 {[%emt 0:00:09]} Re8 {[%emt 0:16:10][%cal Oc7c5]} 15. Nfg5 {[%emt 0:06:13]} Nf8 {[%emt 0:02:33]} ({Better is} 15... h6 $17 16. Nd6 hxg5 17. Nxb7 Qc8) 16. Nc5 {[%emt 0:02:22]} Bxc5 {[%emt 0:05:05]} ({Much weaker is} 16... Bxg5 17. Nxb7 Qc8 18. Na5 $11) 17. dxc5 {[%emt 0:02:14]} h6 {[%emt 0:01:37]} 18. Ne4 {[%emt 0:07:24]} Bc6 $1 {[%emt 0:01:14]} 19. Rd1 {[%emt 0:01:21][%cal Oc1h6]} Qe7 {[%emt 0:01:19]} 20. Bb2 {[%emt 0:08:27][%cal Oe4f6]} Nd7 {[%emt 0:05:40] Prevents Nf6+.} 21. Rac1 {[%emt 0:04:21]} b4 {[%emt 0:00:48]} (21... Red8 $17) 22. axb4 $11 {[%emt 0:04:43]} Nxb4 {[%emt 0:00:45]} 23. Qe2 {[%emt 0:01:09]} (23. Qd2 $11 {remains equal.} Nd5 24. Nf6+ $1 gxf6 25. exf6) 23... Bxe4 {[%emt 0:09:50]} (23... Reb8 $17) 24. Bxe4 {[%emt 0:03:58]} Rab8 {[%emt 0:01:48]} 25. c6 {[%emt 0:02:25]} Nf8 {[%emt 0:00:49]} 26. Bd4 {[%emt 0:02:24] Strongly threatening Bc5. This bishop pair is nice.} Rb5 {[%emt 0:00:48] Prevents Bc5.} 27. Ra1 {[%emt 0:02:58][%cal Oa1a6]} Reb8 {[%emt 0:01:49]} 28. Qc4 {[%emt 0:02:00]} Ng6 {[%emt 0:00:57]} 29. Bxg6 {[%emt 0:01:19]} fxg6 {[%emt 0:00:01]} 30. Ba7 $1 {[%emt 0:00:41]} Ra8 {[%emt 0:00:52]} (30... Rd8 $1 $11 {keeps the balance.}) 31. Rd7 $16 {[%emt 0:00:39]} Qe8 {[%emt 0:00:01]} 32. Rxc7 {[%emt 0:01:38] 0x0.000bd715993edp-1022s more active pieces.} Kh7 {[%emt 0:00:54][%cal Ob4c6]} 33. Bd4 {[%emt 0:01:42]} (33. Rc1 $16) 33... Rc8 {[%emt 0:02:00]} (33... Rd8 $14) 34. Rxc8 Qxc8 {[%emt 0:00:02] [#]} 35. Rb1 {[%emt 0:02:31]} ({Don't play} 35. c7 $6 Nd5 $11) ({White must play} 35. Rc1 $1 $16) 35... Nxc6 $11 {[%emt 0:00:19]} 36. Rc1 {[%emt 0:00:40]} Qd7 {[%emt 0:00:05]} (36... Qd8 {with more complications.} 37. Qxc6 Qxd4 38. Qxe6 Rb2) 37. Qxc6 {[%emt 0:02:23]} Qxd4 {[%emt 0:00:05]} 38. Qxe6 {[%emt 0:00:48]} Rxe5 {[%emt 0:00:12]} (38... Rb2 $5 {[%cal Rd4f2]} 39. Rf1 Qd3 $15) 39. Qxa6 {[%emt 0:00:15] The position is equal.} Rf5 {[%emt 0:00:06]} 40. Qe2 {[%emt 0:00:23]} Qe5 {[%emt 0:00:05]} 41. Qxe5 {[%emt 0:30:02]} Rxe5 {[%emt 0:30:03] Weighted Error Value: White=0.17 (very precise) /Black=0.18 (very precise)} 1/2-1/2

[Event "Teplice Open 2022"]
[Site "Teplice"]
[Date "2022.06.22"]
[Round "5.19"]
[White "Das, Arghyadip"]
[Black "Borges, Guilherme Deola"]
[Result "1-0"]
[ECO "A49"]
[WhiteElo "2472"]
[BlackElo "2224"]
[Annotator "TA"]
[PlyCount "55"]
[EventDate "2022.06.18"]
[EventType "swiss"]
[EventCountry "CZE"]
[SourceTitle "playchess.com"]
[Source "ChessBase"]
[SourceQuality "1"]
[TimeControl "40/5400+30:1800+30"]

{[%evp 14,55,25,22,23,20,31,31,28,25,34,28,22,20,20,7,11,0,27,27,53,29,22,33,81,77,71,71,86,72,219,196,211,217,197,140,143,102,258,254,220,249,29998,29999]} 1. Nf3 {[%emt 0:00:05]} Nf6 {[%emt 0:00:41]} 2. g3 {[%emt 0:00:06]} g6 {[%emt 0:00:16]} 3. Bg2 {[%emt 0:00:04]} Bg7 {[%emt 0:00:16]} 4. O-O {[%emt 0:00:09]} O-O {[%emt 0:00:12]} 5. d4 {[%emt 0:00:03]} d6 {[%emt 0:00:13]} 6. b3 {[%emt 0:00:42]} a5 {[%emt 0:07:09]} 7. a4 {[%emt 0:05:19]} c6 {[%emt 0:01:49]} 8. Bb2 {[%emt 0:03:29]} d5 {[%emt 0:04:55] A49: 1 d4 Nf6 2 Nf3 g6 3 g3: Anti-King's Indian systems.} 9. Nbd2 {[%emt 0:02:25][%cal Bb1d2,Bd2f3,Bf3e5][%mdl 32]} Bf5 {[%emt 0:00:28]} 10. Nh4 {[%emt 0:04:37]} Be6 {[%emt 0:07:59] White is slightly better.} 11. e3 {[%emt 0:00:47] [#]} Qd7 $146 {[%emt 0:01:24]} ({Predecessor:} 11... Na6 12. Nhf3 Bf5 13. Ne5 Nb4 14. c3 Nd3 15. Nxd3 Bxd3 16. Re1 Re8 17. b4 Bf5 {½-½ (31) Fauland,A (2431)-Antoniewski,R (2550) Austria 2013}) 12. Re1 {[%emt 0:05:42]} Bh3 {[%emt 0:00:48]} 13. Bh1 {[%emt 0:00:18]} Na6 {[%emt 0:02:12]} 14. Ndf3 {[%emt 0:08:54]} Ne4 {[%emt 0:06:40]} 15. Ne5 {[%emt 0:01:54] Against Bg4} Qe6 {[%emt 0:02:49]} (15... Bxe5 $5 16. dxe5 Nb4 $11) 16. f3 {[%emt 0:05:53][%cal Bf2f3,Bf3e4,Be4e5,Be5f6,Bf6f7][%mdl 32]} Nd6 {[%emt 0:00:58]} 17. e4 {[%emt 0:00:58]} dxe4 {[%emt 0:05:29]} 18. fxe4 {[%emt 0:00:48]} (18. Qd2 {keeps more tension.} c5 19. fxe4 cxd4 20. Nd3) 18... Bxe5 {[%emt 0:09:14]} (18... c5 $14) 19. dxe5 $16 {[%emt 0:00:41]} Ne8 {[%emt 0:00:05]} 20. Qd2 {[%emt 0:06:57]} Nb4 {[%emt 0:01:00]} 21. Nf3 {[%emt 0:10:56] c3 is the strong threat.} f6 {[%emt 0:04:51] [#]} (21... Bg4 $16) 22. exf6 $1 $18 {[%emt 0:04:48]} exf6 {[%emt 0:00:18]} 23. e5 {[%emt 0:03:50] aiming for exf6.} Qf5 {[%emt 0:13:14]} 24. Nd4 {[%emt 0:09:37]} ({White should play} 24. Rac1 $18) 24... Qg5 $16 {[%emt 0:02:09]} 25. Qc3 $36 {[%emt 0:00:45][%mdl 2048] White has strong initiative.} Nc7 $2 {[%emt 0:03:37]} (25... fxe5 $16 {might work better.} 26. Qc4+ Rf7) 26. Nf3 $18 {[%emt 0:08:38]} ({But not} 26. Bc1 $6 Qg4 $16) 26... Qf5 {[%emt 0:00:55]} 27. exf6 {[%emt 0:00:06][%cal Of6f7] [#] White threatens f7+! and mate.} Ncd5 $2 {[%emt 0:02:03]} (27... Rf7 $18 28. Qc4 Ncd5) 28. f7+ $1 {[%emt 0:00:17] Weighted Error Value: White=0.05 (flawless) /Black=0.57} 1-0

[Event "Teplice Open 2022"]
[Site "Teplice"]
[Date "2022.06.22"]
[Round "5.20"]
[White "Holm, Kristian Stuvik"]
[Black "Jun, Rudolf"]
[Result "1-0"]
[ECO "B31"]
[WhiteElo "2458"]
[BlackElo "2199"]
[Annotator "RC"]
[PlyCount "261"]
[EventDate "2022.06.18"]
[EventType "swiss"]
[EventCountry "CZE"]
[SourceTitle "playchess.com"]
[Source "ChessBase"]
[SourceQuality "1"]
[TimeControl "40/5400+30:1800+30"]

1. e4 {[%emt 0:03:15]} c5 {[%emt 0:00:22]} 2. Nf3 {[%emt 0:00:11]} Nc6 {[%emt 0:01:27]} 3. Bb5 {[%emt 0:01:39]} g6 {[%emt 0:00:09]} 4. Bxc6 {[%emt 0:00:53]} dxc6 {[%emt 0:00:10]} 5. d3 {[%emt 0:00:10]} Bg7 {[%emt 0:00:35]} 6. h3 {[%emt 0:00:13]} Nf6 {[%emt 0:03:07]} 7. a4 {[%emt 0:00:14]} O-O {[%emt 0:04:31]} 8. Be3 {[%emt 0:02:00]} c4 {[%emt 0:04:56]} 9. Nc3 {[%emt 0:01:25]} cxd3 {[%emt 0:01:00]} 10. cxd3 {[%emt 0:00:08]} e5 {[%emt 0:04:32]} 11. O-O {[%emt 0:02:05]} Re8 {[%emt 0:09:37]} 12. b4 {[%emt 0:10:19]} Nh5 {[%emt 0:00:00]} 13. Qd2 {[%emt 0:15:05]} Qd6 {[%emt 0:06:11]} 14. Rab1 {[%emt 0:01:59]} f5 {[%emt 0:11:53]} 15. Ng5 {[%emt 0:16:28]} b6 {[%emt 0:22:57]} 16. Rfd1 {[%emt 0:12:58]} f4 {[%emt 0:03:56]} 17. Qa2+ {[%emt 0:00:10]} Be6 {[%emt 0:00:06]} 18. Nxe6 {[%emt 0:00:08]} Qxe6 {[%emt 0:00:16]} 19. Bc1 {[%emt 0:01:52]} Qxa2 {[%emt 0:00:10]} 20. Nxa2 {[%emt 0:00:04]} Rad8 {[%emt 0:01:10]} 21. Kf1 {[%emt 0:06:05]} Re6 {[%emt 0:00:59]} 22. Ke2 {[%emt 0:02:53]} Rd4 {[%emt 0:04:40]} 23. Rb3 {[%emt 0:03:57]} Bf8 {[%emt 0:01:04]} 24. Bb2 {[%emt 0:01:27]} Rd7 {[%emt 0:00:43]} 25. Ba3 {[%emt 0:05:54]} f3+ {[%emt 0:10:18]} 26. Kxf3 {[%emt 0:01:46]} Rf6+ {[%emt 0:00:54]} 27. Ke2 {[%emt 0:00:31]} Rdf7 {[%emt 0:00:24]} 28. f3 {[%emt 0:00:51]} Nf4+ {[%emt 0:00:16]} 29. Kf1 {[%emt 0:00:38]} Nxh3 {[%emt 0:06:29]} 30. Bb2 {[%emt 0:00:06]} Ng5 {[%emt 0:01:20]} 31. Bxe5 {[%emt 0:00:42]} Rxf3+ {[%emt 0:01:07]} 32. gxf3 {[%emt 0:00:04]} Nxf3 {[%emt 0:00:08]} 33. Ke2 {[%emt 0:02:07]} Nxe5 {[%emt 0:00:09]} 34. d4 {[%emt 0:00:44]} Ng4 {[%emt 0:00:02]} 35. Rf3 {[%emt 0:00:42]} Rd7 {[%emt 0:00:51]} 36. b5 {[%emt 0:02:50]} c5 {[%emt 0:01:05]} 37. dxc5 {[%emt 0:00:32]} Rxd1 {[%emt 0:00:09]} 38. Kxd1 {[%emt 0:00:01]} Bxc5 {[%emt 0:00:10]} 39. Ke2 {[%emt 0:00:33]} Kg7 {[%emt 0:00:19]} 40. Rd3 {[%emt 0:00:57]} h5 {[%emt 0:00:33]} 41. Rd7+ {[%emt 0:35:09]} Kh6 {[%emt 0:30:13]} 42. Nc1 {[%emt 0:00:24]} Ne5 {[%emt 0:00:00]} 43. Rd5 {[%emt 0:00:00]} Ng4 {[%emt 0:00:00]} 44. Nd3 {[%emt 0:00:00]} Bg1 {[%emt 0:00:00]} 45. Kf3 {[%emt 0:00:00]} Ne3 {[%emt 0:00:00]} 46. Rd6 {[%emt 0:00:00]} Ng4 {[%emt 0:00:00]} 47. e5 {[%emt 0:00:00]} Kg5 {[%emt 0:00:00]} 48. e6 {[%emt 0:00:00]} Kf6 {[%emt 0:00:00]} 49. Nf4 {[%emt 0:00:00]} Bc5 {[%emt 0:00:00]} 50. Nd5+ {[%emt 0:00:00]} Ke5 {[%emt 0:00:00]} 51. e7 {[%emt 0:00:00]} Kxd6 {[%emt 0:00:00]} 52. e8=Q {[%emt 0:00:00]} Kxd5 {[%emt 0:00:00]} 53. Qe4+ {[%emt 0:00:00]} Kd6 {[%emt 0:00:00]} 54. Qxg6+ {[%emt 0:00:00]} Kd5 {[%emt 0:00:33]} 55. Qxh5+ {[%emt 0:00:40]} Ne5+ {[%emt 0:00:05]} 56. Kf4 {[%emt 0:01:04]} Bd6 {[%emt 0:00:36]} 57. Kf5 {[%emt 0:00:07]} Nc4 {[%emt 0:00:55]} 58. Qf7+ {[%emt 0:00:42]} Kc5 {[%emt 0:00:34]} 59. Qxa7 {[%emt 0:00:19]} Kb4 {[%emt 0:02:07]} 60. Ke6 {[%emt 0:03:26]} Bc5 {[%emt 0:00:37]} 61. Qa8 {[%emt 0:00:22]} Na5 {[%emt 0:01:49]} 62. Qe4+ {[%emt 0:00:07]} Kc3 {[%emt 0:01:29]} 63. Kd5 {[%emt 0:01:33]} Kb3 {[%emt 0:00:03]} 64. Qg4 {[%emt 0:00:33]} Ka3 {[%emt 0:00:37]} 65. Qd1 {[%emt 0:00:26]} Kb4 {[%emt 0:00:06]} 66. Qc2 {[%emt 0:00:43]} Nb3 {[%emt 0:02:19]} 67. Qa2 {[%emt 0:01:03]} Kc3 {[%emt 0:01:35]} 68. Qb1 {[%emt 0:01:16]} Kb4 {[%emt 0:01:27]} 69. Qa2 {[%emt 0:00:06]} Kc3 {[%emt 0:00:13]} 70. Ke4 {[%emt 0:00:14]} Nd2+ {[%emt 0:00:04]} 71. Ke5 {[%emt 0:00:27]} Nc4+ {[%emt 0:00:29]} 72. Kd5 {[%emt 0:00:04]} Ne3+ {[%emt 0:00:53]} 73. Kc6 {[%emt 0:00:15]} Nc4 {[%emt 0:00:50]} 74. Qb1 {[%emt 0:00:03]} Na5+ {[%emt 0:00:19]} 75. Kd5 {[%emt 0:00:08]} Kd2 {[%emt 0:00:49]} 76. Qe4 {[%emt 0:00:43]} Nb3 {[%emt 0:00:28]} 77. Qe5 {[%emt 0:01:42]} Kd3 {[%emt 0:00:33]} 78. Qe1 {[%emt 0:01:15]} Kc2 {[%emt 0:00:23]} 79. Kc4 {[%emt 0:00:33]} Nd2+ {[%emt 0:00:10]} 80. Kd5 {[%emt 0:00:05]} Nb3 {[%emt 0:00:01]} 81. Kc6 {[%emt 0:00:14]} Nd4+ {[%emt 0:00:16]} 82. Kb7 {[%emt 0:00:33]} Nb3 {[%emt 0:00:53]} 83. Ka6 {[%emt 0:00:05]} Kb2 {[%emt 0:01:07]} 84. Qg3 {[%emt 0:00:34]} Kc2 {[%emt 0:00:39]} 85. Qe5 {[%emt 0:00:22]} Kd3 {[%emt 0:00:29]} 86. Qf6 {[%emt 0:00:42]} Kc4 {[%emt 0:00:32]} 87. Qh4+ {[%emt 0:00:22]} Kc3 {[%emt 0:00:27]} 88. Qe1+ {[%emt 0:01:13]} Kc4 {[%emt 0:00:17]} 89. Kb7 {[%emt 0:00:21]} Na5+ {[%emt 0:00:23]} 90. Kc7 {[%emt 0:00:02]} Kb3 {[%emt 0:00:32]} 91. Qd1+ {[%emt 0:00:10]} Kb4 {[%emt 0:00:39]} 92. Kd7 {[%emt 0:00:29]} Nb3 {[%emt 0:00:17]} 93. Qg4+ {[%emt 0:00:11]} Nd4 {[%emt 0:00:25]} 94. Qd1 {[%emt 0:01:16]} Nb3 {[%emt 0:00:01]} 95. Ke6 {[%emt 0:02:16]} Kxa4 {[%emt 0:00:51]} 96. Kd5 {[%emt 0:00:05]} Kb4 {[%emt 0:00:23]} 97. Qc2 {[%emt 0:00:12]} Na5 {[%emt 0:00:41]} 98. Qb2+ {[%emt 0:00:13]} Nb3 {[%emt 0:00:33]} 99. Ke4 {[%emt 0:00:12]} Kc4 {[%emt 0:00:20]} 100. Qc2+ {[%emt 0:00:05]} Kb4 {[%emt 0:00:15]} 101. Kd3 {[%emt 0:00:09]} Na5 {[%emt 0:00:29]} 102. Qb2+ {[%emt 0:00:42]} Ka4 {[%emt 0:00:34]} 103. Kc3 {[%emt 0:00:35]} Bd6 {[%emt 0:00:36]} 104. Qb1 {[%emt 0:00:44]} Bc5 {[%emt 0:00:59]} 105. Qd3 {[%emt 0:01:04]} Bb4+ {[%emt 0:00:32]} 106. Kb2 {[%emt 0:00:27]} Bc5 {[%emt 0:00:35]} 107. Kc2 {[%emt 0:00:23]} Kb4 {[%emt 0:00:21]} 108. Qd7 {[%emt 0:00:31]} Ka4 {[%emt 0:00:49]} 109. Kc3 {[%emt 0:00:13]} Bb4+ {[%emt 0:00:11]} 110. Kd4 {[%emt 0:00:19]} Bc5+ {[%emt 0:00:31]} 111. Kd5 {[%emt 0:00:05]} Kb4 {[%emt 0:00:25]} 112. Qe8 {[%emt 0:00:12]} Kb3 {[%emt 0:00:40]} 113. Qe4 {[%emt 0:00:11]} Ka3 {[%emt 0:00:41]} 114. Qe2 {[%emt 0:00:40]} Kb4 {[%emt 0:00:23]} 115. Qb2+ {[%emt 0:00:07]} Nb3 {[%emt 0:00:36]} 116. Qb1 {[%emt 0:00:53]} Kc3 {[%emt 0:00:20]} 117. Qe4 {[%emt 0:00:14]} Kd2 {[%emt 0:00:43]} 118. Qc4 {[%emt 0:01:45]} Na5 {[%emt 0:00:30]} 119. Qa2+ {[%emt 0:00:09]} Kc3 {[%emt 0:00:22]} 120. Qxa5+ {[%emt 0:01:35]} bxa5 {[%emt 0:00:07]} 121. Kxc5 {[%emt 0:00:01]} a4 {[%emt 0:00:13]} 122. b6 {[%emt 0:00:02]} a3 {[%emt 0:00:05]} 123. b7 {[%emt 0:00:03]} a2 {[%emt 0:00:24]} 124. b8=Q {[%emt 0:00:08]} Kc2 {[%emt 0:00:15]} 125. Qe5 {[%emt 0:01:11]} Kb1 {[%emt 0:00:05]} 126. Qe1+ {[%emt 0:00:05]} Kb2 {[%emt 0:00:08]} 127. Qd2+ {[%emt 0:00:03]} Kb1 {[%emt 0:00:52]} 128. Kb4 {[%emt 0:00:13]} a1=Q {[%emt 0:00:22]} 129. Kb3 {[%emt 0:00:14]} Qc3+ {[%emt 0:01:14]} 130. Kxc3 {[%emt 0:00:07]} Ka1 {[%emt 0:00:04]} 131. Qb2# {[%emt 0:00:05]} 1-0